{"text_format":"1","workbook":"xlsx","n_sheets":3,"sheets":["Specjalność (SA)","Specjalność (OPTO)","Specjalność (SEiT)"],"not_rendered":{"charts":0,"images":0,"macros":1,"external_links":0,"defined_names":16,"comments":0,"pivot_tables":0},"unopened":[],"bounds":{"document_bytes":16777216,"sheet_cells":100000,"rows_first":2000,"rows_last":500,"rows_between":2000,"halvings":0,"cell_chars":16384,"cell_head_chars":4096},"cells_cut":0,"cells_raw":0,"read":"whole","date_system":"1900"}

{"sheet":"Specjalność (SA)","index":0,"n_rows":23,"n_cols":65,"rows_kept":23,"cut":false,"hidden":false,"merged":[[0,60,0,64],[1,41,1,45],[1,60,1,64],[2,41,2,45],[5,2,6,2],[5,3,6,3],[5,4,5,9],[5,10,5,14],[5,15,5,19],[5,20,5,24],[5,25,5,29],[5,30,5,34],[5,35,5,39],[5,40,5,44],[5,45,5,49],[5,50,5,54],[5,55,5,59],[5,60,5,64],[18,2,19,3],[18,8,19,8],[18,9,19,9],[18,14,19,14],[18,19,19,19],[18,24,19,24],[18,29,19,29],[18,34,19,34],[18,39,19,39],[18,44,19,44],[18,49,19,49],[18,54,19,54],[18,59,19,59],[18,64,19,64],[19,4,19,7],[19,10,19,13],[19,15,19,18],[19,20,19,23],[19,25,19,28],[19,30,19,33],[19,35,19,38],[19,40,19,43],[19,45,19,48],[19,50,19,53],[19,55,19,58],[19,60,19,63],[20,2,20,3]]}
[]
[null,null,null,null,"PLAN STUDIÓW DLA KIERUNKU: ","Elektronika i Telekomunikacja - studia I-go stopnia"]
[null,null,null,null,"SPECJALNOŚĆ: ","Systemy Automatyki"]
[null,null,null,null,null,null,null,null,null,null,null,null,null,null,null,null,null,null,null,null,null,null,null,null,null,null,null,null,null,null,null,null,null,null,"obowiązuje od roku akademickiego: 2015  /2016"]
[]
[null,null,"Lp","Przedmioty specjalnościowe oraz profili dyplomowania","Suma godzin / ECTS",null,null,null,null,null,"Sem. I",null,null,null,null,"Sem. II",null,null,null,null,"Sem. III",null,null,null,null,"Sem. IV",null,null,null,null,"Sem. V",null,null,null,null,"Sem. VI",null,null,null,null,"Sem. VII"]
[null,null,null,null,"W","Ć","L","P","S","PE","W","Ć","L","P","PE","W","Ć","L","P","PE","W","Ć","L","P","PE","W","Ć","L","P","PE","W","Ć","L","P","PE","W","Ć","L","P","PE","W","Ć","L","P","PE"]
[1,null,1,"Sterowniki programowalne",30,15,null,null,{"$f":"SUM(E8:H8)","v":45},{"$f":"SUMIF($K$7:$BM$7,J$7,$K8:$BM8)","v":4},null,null,null,null,null,null,null,null,null,null,null,null,null,null,null,null,null,null,null,null,2,1,null,null,4]
[1,null,2,"Modele i metody automatyki",30,15,null,null,{"$f":"SUM(E9:H9)","v":45},{"$f":"SUMIF($K$7:$BM$7,J$7,$K9:$BM9)","v":4},null,null,null,null,null,null,null,null,null,null,null,null,null,null,null,null,null,null,null,null,2,1,null,null,4]
[1,null,3,"Komputerowe systemy przetwarzania sygnałów",15,null,30,null,{"$f":"SUM(E10:H10)","v":45},{"$f":"SUMIF($K$7:$BM$7,J$7,$K10:$BM10)","v":4},null,null,null,null,null,null,null,null,null,null,null,null,null,null,null,null,null,null,null,null,null,null,null,null,null,1,null,2,null,4]
[1,null,4,"Komputerowe systemy pomiarowe, monitorujące i diagnostyczne",15,null,30,null,{"$f":"SUM(E11:H11)","v":45},{"$f":"SUMIF($K$7:$BM$7,J$7,$K11:$BM11)","v":3},null,null,null,null,null,null,null,null,null,null,null,null,null,null,null,null,null,null,null,null,null,null,null,null,null,1,null,2,null,3]
[1,null,5,"Programowanie obiektowe urządzeń i systemów",30,15,null,null,{"$f":"SUM(E12:H12)","v":45},{"$f":"SUMIF($K$7:$BM$7,J$7,$K12:$BM12)","v":4},null,null,null,null,null,null,null,null,null,null,null,null,null,null,null,null,null,null,null,null,null,null,null,null,null,2,1,null,null,4]
[1,null,6,"Systemy komputerowe multimediów, budynków i pojazdów",15,15,null,30,{"$f":"SUM(E13:H13)","v":60},{"$f":"SUMIF($K$7:$BM$7,J$7,$K13:$BM13)","v":3},null,null,null,null,null,null,null,null,null,null,null,null,null,null,null,null,null,null,null,null,1,1,null,null,2,null,null,null,2,1]
[1,null,7,"Przedmiot obieralny ",30,null,null,30,{"$f":"SUM(E14:H14)","v":60},{"$f":"SUMIF($K$7:$BM$7,J$7,$K14:$BM14)","v":5},null,null,null,null,null,null,null,null,null,null,null,null,null,null,null,null,null,null,null,null,null,null,null,null,null,null,null,null,null,null,2,null,null,2,5]
[1,null,8,"Projektowanie użytkowych systemów komputerowych",30,null,null,30,{"$f":"SUM(E15:H15)","v":60},{"$f":"SUMIF($K$7:$BM$7,J$7,$K15:$BM15)","v":5},null,null,null,null,null,null,null,null,null,null,null,null,null,null,null,null,null,null,null,null,null,null,null,null,null,null,null,null,null,null,2,null,null,2,5]
[1,null,9,"Sterowanie komputerowe i sieci przemysłowe",15,null,30,null,{"$f":"SUM(E16:H16)","v":45},{"$f":"SUMIF($K$7:$BM$7,J$7,$K16:$BM16)","v":3},null,null,null,null,null,null,null,null,null,null,null,null,null,null,null,null,null,null,null,null,null,null,null,null,null,null,null,null,null,null,1,null,2,null,3]
[1]
[1]
[2,null,"Razem  ",null,{"$f":"SUM(E8:E18)","v":210},{"$f":"SUM(F8:F18)","v":60},{"$f":"SUM(G8:G18)","v":90},{"$f":"SUM(H8:H18)","v":90},{"$f":"SUM(I8:I18)","v":450},{"$f":"SUM(J8:J18)","v":35},{"$f":"SUM(K8:K18)","v":0},{"$f":"SUM(L8:L18)-SUMIF($D$8:$D$18,\"WF\",L8:L18)","v":0},{"$f":"SUM(M8:M18)","v":0},{"$f":"SUM(N8:N18)","v":0},{"$f":"SUM(O8:O18)","v":0},{"$f":"SUM(P8:P18)","v":0},{"$f":"SUM(Q8:Q18)-SUMIF($D$8:$D$18,\"WF\",Q8:Q18)","v":0},{"$f":"SUM(R8:R18)","v":0},{"$f":"SUM(S8:S18)","v":0},{"$f":"SUM(T8:T18)","v":0},{"$f":"SUM(U8:U18)","v":0},{"$f":"SUM(V8:V18)-SUMIF($D$8:$D$18,\"WF\",V8:V18)","v":0},{"$f":"SUM(W8:W18)","v":0},{"$f":"SUM(X8:X18)","v":0},{"$f":"SUM(Y8:Y18)","v":0},{"$f":"SUM(Z8:Z18)","v":0},{"$f":"SUM(AA8:AA18)-SUMIF($D$8:$D$18,\"WF\",AA8:AA18)","v":0},{"$f":"SUM(AB8:AB18)","v":0},{"$f":"SUM(AC8:AC18)","v":0},{"$f":"SUM(AD8:AD18)","v":0},{"$f":"SUM(AE8:AE18)","v":5},{"$f":"SUM(AF8:AF18)-SUMIF($D$8:$D$18,\"WF\",AF8:AF18)","v":3},null,null,{"$f":"SUM(AI8:AI18)","v":10},{"$f":"SUM(AJ8:AJ18)","v":4},{"$f":"SUM(AK8:AK18)-SUMIF($D$8:$D$18,\"WF\",AK8:AK18)","v":1},{"$f":"SUM(AL8:AL18)","v":4},{"$f":"SUM(AM8:AM18)","v":2},{"$f":"SUM(AN8:AN18)","v":12},{"$f":"SUM(AO8:AO18)","v":5},null,{"$f":"SUM(AQ8:AQ18)","v":2},{"$f":"SUM(AR8:AR18)","v":4},{"$f":"SUM(AS8:AS18)","v":13},{"$f":"SUM(AT8:AT18)","v":0},{"$f":"SUM(AU8:AU18)-SUMIF($D$8:$D$18,\"WF\",AU8:AU18)","v":0},{"$f":"SUM(AV8:AV18)","v":0},{"$f":"SUM(AW8:AW18)","v":0},{"$f":"SUM(AX8:AX18)","v":0},{"$f":"SUM(AY8:AY18)","v":0},{"$f":"SUM(AZ8:AZ18)-SUMIF($D$8:$D$18,\"WF\",AZ8:AZ18)","v":0},{"$f":"SUM(BA8:BA18)","v":0},{"$f":"SUM(BB8:BB18)","v":0},{"$f":"SUM(BC8:BC18)","v":0},{"$f":"SUM(BD8:BD18)","v":0},{"$f":"SUM(BE8:BE18)-SUMIF($D$8:$D$18,\"WF\",BE8:BE18)","v":0},{"$f":"SUM(BF8:BF18)","v":0},{"$f":"SUM(BG8:BG18)","v":0},{"$f":"SUM(BH8:BH18)","v":0},{"$f":"SUM(BI8:BI18)","v":0},{"$f":"SUM(BJ8:BJ18)-SUMIF($D$8:$D$18,\"WF\",BJ8:BJ18)","v":0},{"$f":"SUM(BK8:BK18)","v":0},{"$f":"SUM(BL8:BL18)","v":0},{"$f":"SUM(BM8:BM18)","v":0}]
[null,null,null,null,"28 godz. x 15 tygodni",null,null,null,null,null,{"$f":"SUM(K19:N19)","v":0},null,null,null,null,{"$f":"SUM(P19:S19)","v":0},null,null,null,null,{"$f":"SUM(U19:X19)","v":0},null,null,null,null,{"$f":"SUM(Z19:AC19)","v":0},null,null,null,null,{"$f":"SUM(AE19:AH19)","v":8},null,null,null,null,{"$f":"SUM(AJ19:AM19)","v":11},null,null,null,null,{"$f":"SUM(AO19:AR19)","v":11},null,null,null,null,{"$f":"SUM(AT19:AW19)","v":0},null,null,null,null,{"$f":"SUM(AY19:BB19)","v":0},null,null,null,null,{"$f":"SUM(BD19:BG19)","v":0},null,null,null,null,{"$f":"SUM(BI19:BL19)","v":0}]
[null,null,"Liczba egzaminów ",null,{"$f":"SUM(K21:AR21)","v":6},null,null,null,null,null,0,null,null,null,null,0,null,null,null,null,0,null,null,null,null,0,null,null,null,null,1,null,null,null,null,2,null,null,null,null,3,null,null,null,null,{"$f":"LICZBAEGZ(AT8:AW18)","v":{"$error":"#VALUE!"}},null,null,null,null,{"$f":"LICZBAEGZ(AY8:BB18)","v":{"$error":"#VALUE!"}},null,null,null,null,{"$f":"LICZBAEGZ(BD8:BG18)","v":{"$error":"#VALUE!"}},null,null,null,null,{"$f":"LICZBAEGZ(BI8:BL18)","v":{"$error":"#VALUE!"}}]
[]
[null,null,"12.03.2018r."]

{"sheet":"Specjalność (OPTO)","index":1,"n_rows":24,"n_cols":65,"rows_kept":24,"cut":false,"hidden":false,"merged":[[0,60,0,64],[1,41,1,45],[1,60,1,64],[2,41,2,45],[5,2,6,2],[5,3,6,3],[5,4,5,9],[5,10,5,14],[5,15,5,19],[5,20,5,24],[5,25,5,29],[5,30,5,34],[5,35,5,39],[5,40,5,44],[5,45,5,49],[5,50,5,54],[5,55,5,59],[5,60,5,64],[19,2,20,3],[19,8,20,8],[19,9,20,9],[19,14,20,14],[19,19,20,19],[19,24,20,24],[19,29,20,29],[19,34,20,34],[19,39,20,39],[19,44,20,44],[19,49,20,49],[19,54,20,54],[19,59,20,59],[19,64,20,64],[20,4,20,7],[20,10,20,13],[20,15,20,18],[20,20,20,23],[20,25,20,28],[20,30,20,33],[20,35,20,38],[20,40,20,43],[20,45,20,48],[20,50,20,53],[20,55,20,58],[20,60,20,63],[21,2,21,3]]}
[]
[null,null,null,null,"PLAN STUDIÓW DLA KIERUNKU: ","Elektronika i Telekomunikacja - studia I-go stopnia"]
[null,null,null,null,"SPECJALNOŚĆ: ","Optoelektronika"]
[null,null,null,null,null,null,null,null,null,null,null,null,null,null,null,null,null,null,null,null,null,null,null,null,null,null,null,null,null,null,null,null,null,null,"obowiązuje od roku akademickiego: 2015  /2016"]
[]
[null,null,"Lp","Przedmioty specjalnościowe oraz profili dyplomowania","Suma godzin / ECTS",null,null,null,null,null,"Sem. I",null,null,null,null,"Sem. II",null,null,null,null,"Sem. III",null,null,null,null,"Sem. IV",null,null,null,null,"Sem. V",null,null,null,null,"Sem. VI",null,null,null,null,"Sem. VII"]
[null,null,null,null,"W","Ć","L","P","S","PE","W","Ć","L","P","PE","W","Ć","L","P","PE","W","Ć","L","P","PE","W","Ć","L","P","PE","W","Ć","L","P","PE","W","Ć","L","P","PE","W","Ć","L","P","PE"]
[1,null,1,"Podstawy fizyczne optoelektroniki",30,15,null,null,{"$f":"SUM(E8:H8)","v":45},{"$f":"SUMIF($K$7:$BM$7,J$7,$K8:$BM8)","v":4},null,null,null,null,null,null,null,null,null,null,null,null,null,null,null,null,null,null,null,null,2,1,null,null,4]
[1,null,2,"Optyka stosowana",15,15,null,null,{"$f":"SUM(E9:H9)","v":30},{"$f":"SUMIF($K$7:$BM$7,J$7,$K9:$BM9)","v":2},null,null,null,null,null,null,null,null,null,null,null,null,null,null,null,null,null,null,null,null,1,1,null,null,2]
[1,null,3,"Detektory i nadajniki optoelektroniczne",30,15,null,null,{"$f":"SUM(E10:H10)","v":45},{"$f":"SUMIF($K$7:$BM$7,J$7,$K10:$BM10)","v":4},null,null,null,null,null,null,null,null,null,null,null,null,null,null,null,null,null,null,null,null,2,1,null,null,4]
[1,null,4,"Programowanie urządzeń kontrolno-pomiarowych ",15,null,30,null,{"$f":"SUM(E11:H11)","v":45},{"$f":"SUMIF($K$7:$BM$7,J$7,$K11:$BM11)","v":3},null,null,null,null,null,null,null,null,null,null,null,null,null,null,null,null,null,null,null,null,null,null,null,null,null,1,null,2,null,3]
[1,null,5,"Metrologia optyczna",15,null,30,null,{"$f":"SUM(E12:H12)","v":45},{"$f":"SUMIF($K$7:$BM$7,J$7,$K12:$BM12)","v":4},null,null,null,null,null,null,null,null,null,null,null,null,null,null,null,null,null,null,null,null,null,null,null,null,null,1,null,2,null,4]
[1,null,6,"Układy optoelektroniczne ",15,15,null,30,{"$f":"SUM(E13:H13)","v":60},{"$f":"SUMIF($K$7:$BM$7,J$7,$K13:$BM13)","v":4},null,null,null,null,null,null,null,null,null,null,null,null,null,null,null,null,null,null,null,null,null,null,null,null,null,1,1,null,2,4]
[1,null,7,"Technika światłowodowa",15,null,null,null,{"$f":"SUM(E14:H14)","v":15},{"$f":"SUMIF($K$7:$BM$7,J$7,$K14:$BM14)","v":1},null,null,null,null,null,null,null,null,null,null,null,null,null,null,null,null,null,null,null,null,null,null,null,null,null,1,null,null,null,1]
[1,null,8,"Fotowoltaika",15,null,30,30,{"$f":"SUM(E15:H15)","v":75},{"$f":"SUMIF($K$7:$BM$7,J$7,$K15:$BM15)","v":6},null,null,null,null,null,null,null,null,null,null,null,null,null,null,null,null,null,null,null,null,null,null,null,null,null,null,null,null,null,null,1,null,2,2,6]
[1,null,9,"Zintegrowane układy optoelektroniczne",30,null,null,null,{"$f":"SUM(E16:H16)","v":30},{"$f":"SUMIF($K$7:$BM$7,J$7,$K16:$BM16)","v":2},null,null,null,null,null,null,null,null,null,null,null,null,null,null,null,null,null,null,null,null,null,null,null,null,null,null,null,null,null,null,2,null,null,null,2]
[1,null,10,"Przedmiot obieralny",30,null,null,30,{"$f":"SUM(E17:H17)","v":60},{"$f":"SUMIF($K$7:$BM$7,J$7,$K17:$BM17)","v":5},null,null,null,null,null,null,null,null,null,null,null,null,null,null,null,null,null,null,null,null,null,null,null,null,null,null,null,null,null,null,2,null,null,2,5]
[1,null,null,null,null,null,null,null,null,{"$f":"SUMIF($K$7:$BM$7,J$7,$K18:$BM18)","v":0}]
[1]
[2,null,"Razem  ",null,{"$f":"SUM(E8:E19)","v":210},{"$f":"SUM(F8:F19)","v":60},{"$f":"SUM(G8:G19)","v":90},{"$f":"SUM(H8:H19)","v":90},{"$f":"SUM(I8:I19)","v":450},{"$f":"SUM(J8:J19)","v":35},{"$f":"SUM(K8:K19)","v":0},{"$f":"SUM(L8:L19)-SUMIF($D$8:$D$19,\"WF\",L8:L19)","v":0},{"$f":"SUM(M8:M19)","v":0},{"$f":"SUM(N8:N19)","v":0},{"$f":"SUM(O8:O19)","v":0},{"$f":"SUM(P8:P19)","v":0},{"$f":"SUM(Q8:Q19)-SUMIF($D$8:$D$19,\"WF\",Q8:Q19)","v":0},{"$f":"SUM(R8:R19)","v":0},{"$f":"SUM(S8:S19)","v":0},{"$f":"SUM(T8:T19)","v":0},{"$f":"SUM(U8:U19)","v":0},{"$f":"SUM(V8:V19)-SUMIF($D$8:$D$19,\"WF\",V8:V19)","v":0},{"$f":"SUM(W8:W19)","v":0},{"$f":"SUM(X8:X19)","v":0},{"$f":"SUM(Y8:Y19)","v":0},{"$f":"SUM(Z8:Z19)","v":0},{"$f":"SUM(AA8:AA19)-SUMIF($D$8:$D$19,\"WF\",AA8:AA19)","v":0},{"$f":"SUM(AB8:AB19)","v":0},{"$f":"SUM(AC8:AC19)","v":0},{"$f":"SUM(AD8:AD19)","v":0},{"$f":"SUM(AE8:AE19)","v":5},{"$f":"SUM(AF8:AF19)-SUMIF($D$8:$D$19,\"WF\",AF8:AF19)","v":3},{"$f":"SUM(AG8:AG19)","v":0},{"$f":"SUM(AH8:AH19)","v":0},{"$f":"SUM(AI8:AI19)","v":10},{"$f":"SUM(AJ8:AJ19)","v":4},{"$f":"SUM(AK8:AK19)-SUMIF($D$8:$D$19,\"WF\",AK8:AK19)","v":1},{"$f":"SUM(AL8:AL19)","v":4},{"$f":"SUM(AM8:AM19)","v":2},{"$f":"SUM(AN8:AN19)","v":12},{"$f":"SUM(AO8:AO19)","v":5},{"$f":"SUM(AP8:AP19)","v":0},{"$f":"SUM(AQ8:AQ19)","v":2},{"$f":"SUM(AR8:AR19)","v":4},{"$f":"SUM(AS8:AS19)","v":13},{"$f":"SUM(AT8:AT19)","v":0},{"$f":"SUM(AU8:AU19)-SUMIF($D$8:$D$19,\"WF\",AU8:AU19)","v":0},{"$f":"SUM(AV8:AV19)","v":0},{"$f":"SUM(AW8:AW19)","v":0},{"$f":"SUM(AX8:AX19)","v":0},{"$f":"SUM(AY8:AY19)","v":0},{"$f":"SUM(AZ8:AZ19)-SUMIF($D$8:$D$19,\"WF\",AZ8:AZ19)","v":0},{"$f":"SUM(BA8:BA19)","v":0},{"$f":"SUM(BB8:BB19)","v":0},{"$f":"SUM(BC8:BC19)","v":0},{"$f":"SUM(BD8:BD19)","v":0},{"$f":"SUM(BE8:BE19)-SUMIF($D$8:$D$19,\"WF\",BE8:BE19)","v":0},{"$f":"SUM(BF8:BF19)","v":0},{"$f":"SUM(BG8:BG19)","v":0},{"$f":"SUM(BH8:BH19)","v":0},{"$f":"SUM(BI8:BI19)","v":0},{"$f":"SUM(BJ8:BJ19)-SUMIF($D$8:$D$19,\"WF\",BJ8:BJ19)","v":0},{"$f":"SUM(BK8:BK19)","v":0},{"$f":"SUM(BL8:BL19)","v":0},{"$f":"SUM(BM8:BM19)","v":0}]
[null,null,null,null,"28 godz. x 15 tygodni",null,null,null,null,null,{"$f":"SUM(K20:N20)","v":0},null,null,null,null,{"$f":"SUM(P20:S20)","v":0},null,null,null,null,{"$f":"SUM(U20:X20)","v":0},null,null,null,null,{"$f":"SUM(Z20:AC20)","v":0},null,null,null,null,{"$f":"SUM(AE20:AH20)","v":8},null,null,null,null,{"$f":"SUM(AJ20:AM20)","v":11},null,null,null,null,{"$f":"SUM(AO20:AR20)","v":11},null,null,null,null,{"$f":"SUM(AT20:AW20)","v":0},null,null,null,null,{"$f":"SUM(AY20:BB20)","v":0},null,null,null,null,{"$f":"SUM(BD20:BG20)","v":0},null,null,null,null,{"$f":"SUM(BI20:BL20)","v":0}]
[null,null,"Liczba egzaminów ",null,{"$f":"SUM(K22:AR22)","v":6},null,null,null,null,null,0,null,null,null,null,0,null,null,null,null,0,null,null,null,null,0,null,null,null,null,1,null,null,null,null,2,null,null,null,null,3,null,null,null,null,{"$f":"LICZBAEGZ(AT8:AW19)","v":{"$error":"#VALUE!"}},null,null,null,null,{"$f":"LICZBAEGZ(AY8:BB19)","v":{"$error":"#VALUE!"}},null,null,null,null,{"$f":"LICZBAEGZ(BD8:BG19)","v":{"$error":"#VALUE!"}},null,null,null,null,{"$f":"LICZBAEGZ(BI8:BL19)","v":{"$error":"#VALUE!"}}]
[]
[null,null,"12.03.2018r."]

{"sheet":"Specjalność (SEiT)","index":2,"n_rows":27,"n_cols":44,"rows_kept":27,"cut":false,"hidden":false,"merged":[[1,45,1,48],[6,1,7,1],[6,2,7,2],[6,3,6,8],[6,9,6,13],[6,14,6,18],[6,19,6,23],[6,24,6,28],[6,29,6,33],[6,34,6,38],[6,39,6,43],[22,1,23,2],[22,7,23,7],[22,8,23,8],[22,13,23,13],[22,18,23,18],[22,23,23,23],[22,28,23,28],[22,33,23,33],[22,38,23,38],[22,43,23,43],[23,3,23,6],[23,9,23,12],[23,14,23,17],[23,19,23,22],[23,24,23,27],[23,29,23,32],[23,34,23,37],[23,39,23,42],[24,1,24,2]]}
[null,null,null,null,null,null,null,null,null,1]
[null,null,null,"PLAN STUDIÓW DLA KIERUNKU: ","Elektronika i Telekomunikacja - studia I-go stopnia"]
[null,null,null,"SPECJALNOŚĆ: ","Systemy elektroniczne i telekomunikacyjne"]
[]
[null,null,null,null,null,null,null,null,null,null,null,null,null,null,null,null,null,null,null,null,null,null,null,null,null,null,null,null,null,null,null,null,null,"obowiązuje od roku akademickiego: 2015  /2016"]
[]
[null,"Lp","Przedmioty specjalnościowe oraz profili dyplomowania","Suma godzin / ECTS",null,null,null,null,null,"Sem. I",null,null,null,null,"Sem. II",null,null,null,null,"Sem. III",null,null,null,null,"Sem. IV",null,null,null,null,"Sem. V",null,null,null,null,"Sem. VI",null,null,null,null,"Sem. VII"]
[null,null,null,"W","Ć","L","P","S","PE","W","Ć","L","P","PE","W","Ć","L","P","PE","W","Ć","L","P","PE","W","Ć","L","P","PE","W","Ć","L","P","PE","W","Ć","L","P","PE","W","Ć","L","P","PE"]
[null,1,"Technika światłowodowa",15,15,null,null,{"$f":"SUM(D9:G9)","v":30},2,null,null,null,null,null,null,null,null,null,null,null,null,null,null,null,null,null,null,null,null,1,1,null,null,2]
[null,2,"Systemy komunikacji bezprzewodowej",30,15,null,null,{"$f":"SUM(D10:G10)","v":45},{"$f":"SUMIF($L$8:$AT$8,I$8,$L10:$AT10)","v":4},null,null,null,null,null,null,null,null,null,null,null,null,null,null,null,null,null,null,null,null,2,1,null,null,4]
[null,3,"Konstrukcje i aplikacje układów scalonych",30,15,null,null,{"$f":"SUM(D11:G11)","v":45},4,null,null,null,null,null,null,null,null,null,null,null,null,null,null,null,null,null,null,null,null,2,1,null,null,4]
[null,4,"Sieci zintegrowane i szerokopasmowe",30,15,null,null,{"$f":"SUM(D12:G12)","v":45},3,null,null,null,null,null,null,null,null,null,null,null,null,null,null,null,null,null,null,null,null,null,null,null,null,null,2,1,null,null,3]
[null,5,"Komputerowe projektowanie systemów",15,null,30,null,{"$f":"SUM(D13:G13)","v":45},4,null,null,null,null,null,null,null,null,null,null,null,null,null,null,null,null,null,null,null,null,null,null,null,null,null,1,null,2,null,4]
[null,6,"Komputerowe systemy pomiarowe, monitorujące i diagnostyczne",15,null,30,null,{"$f":"SUM(D14:G14)","v":45},3,null,null,null,null,null,null,null,null,null,null,null,null,null,null,null,null,null,null,null,null,null,null,null,null,null,1,null,2,null,3]
[null,7,"Projektowanie sieci telekomunikacyjnych",null,null,null,30,{"$f":"SUM(D15:G15)","v":30},2,null,null,null,null,null,null,null,null,null,null,null,null,null,null,null,null,null,null,null,null,null,null,null,null,null,null,null,null,2,2]
[null,8,"Laboratorium telekomunikacji",null,null,30,null,{"$f":"SUM(D16:G16)","v":30},3,null,null,null,null,null,null,null,null,null,null,null,null,null,null,null,null,null,null,null,null,null,null,null,null,null,null,null,null,null,null,null,null,2,null,3]
[null,9,"Pracownia projektowa specjalności",null,null,null,30,{"$f":"SUM(D17:G17)","v":30},2,null,null,null,null,null,null,null,null,null,null,null,null,null,null,null,null,null,null,null,null,null,null,null,null,null,null,null,null,null,null,null,null,null,2,2]
[null,10,"Filtry czasu ciągłego i przełączane",30,null,null,null,{"$f":"SUM(D18:G18)","v":30},3,null,null,null,null,null,null,null,null,null,null,null,null,null,null,null,null,null,null,null,null,null,null,null,null,null,null,null,null,null,null,2,null,null,null,3]
[null,11,"Komputerowe wspomaganie pracy inżyniera (ADS)",15,null,null,30,{"$f":"SUM(D19:G19)","v":45},3,null,null,null,null,null,null,null,null,null,null,null,null,null,null,null,null,null,null,null,null,null,null,null,null,null,null,null,null,null,null,1,null,null,2,3]
[null,12,"Wykład monograficzny obieralny",30,null,null,null,{"$f":"SUM(D20:G20)","v":30},2,null,null,null,null,null,null,null,null,null,null,null,null,null,null,null,null,null,null,null,null,null,null,null,null,null,null,null,null,null,null,2,null,null,null,2]
[]
[]
[null,"Razem  ",null,{"$f":"SUM(D9:D22)","v":210},{"$f":"SUM(E9:E22)","v":60},{"$f":"SUM(F9:F22)","v":90},{"$f":"SUM(G9:G22)","v":90},{"$f":"SUM(H9:H20)","v":450},{"$f":"SUM(I9:I22)","v":35},{"$f":"SUM(J9:J22)","v":0},{"$f":"SUM(K9:K22)-SUMIF($E$9:$E$22,\"WF\",K9:K22)","v":0},{"$f":"SUM(L9:L22)","v":0},{"$f":"SUM(M9:M22)","v":0},{"$f":"SUM(N9:N22)","v":0},{"$f":"SUM(O9:O22)","v":0},{"$f":"SUM(P9:P22)-SUMIF($E$9:$E$22,\"WF\",P9:P22)","v":0},{"$f":"SUM(Q9:Q22)","v":0},{"$f":"SUM(R9:R22)","v":0},{"$f":"SUM(S9:S22)","v":0},{"$f":"SUM(T9:T22)","v":0},{"$f":"SUM(U9:U22)-SUMIF($E$9:$E$22,\"WF\",U9:U22)","v":0},{"$f":"SUM(V9:V22)","v":0},{"$f":"SUM(W9:W22)","v":0},{"$f":"SUM(X9:X22)","v":0},{"$f":"SUM(Y9:Y22)","v":0},{"$f":"SUM(Z9:Z22)-SUMIF($E$9:$E$22,\"WF\",Z9:Z22)","v":0},{"$f":"SUM(AA9:AA22)","v":0},{"$f":"SUM(AB9:AB22)","v":0},{"$f":"SUM(AC9:AC22)","v":0},{"$f":"SUM(AD9:AD22)","v":5},{"$f":"SUM(AE9:AE22)","v":3},null,null,{"$f":"SUM(AH9:AH22)","v":10},{"$f":"SUM(AI9:AI22)","v":4},{"$f":"SUM(AJ9:AJ22)-SUMIF($E$9:$E$22,\"WF\",AJ9:AJ22)","v":1},{"$f":"SUM(AK9:AK22)","v":4},{"$f":"SUM(AL9:AL22)","v":2},{"$f":"SUM(AM9:AM22)","v":12},{"$f":"SUM(AN9:AN22)","v":5},null,{"$f":"SUM(AP9:AP22)","v":2},{"$f":"SUM(AQ9:AQ22)","v":4},{"$f":"SUM(AR9:AR22)","v":13}]
[null,null,null,"28 godz. x 15 tygodni",null,null,null,null,null,{"$f":"SUM(J23:M23)","v":0},null,null,null,null,{"$f":"SUM(O23:R23)","v":0},null,null,null,null,{"$f":"SUM(T23:W23)","v":0},null,null,null,null,{"$f":"SUM(Y23:AB23)","v":0},null,null,null,null,{"$f":"SUM(AD23:AG23)","v":8},null,null,null,null,{"$f":"SUM(AI23:AL23)","v":11},null,null,null,null,{"$f":"SUM(AN23:AQ23)","v":11}]
[null,"Liczba egzaminów ",null,{"$f":"SUM(J25:AQ25)","v":6},null,null,null,null,null,0,null,null,null,null,0,null,null,null,null,0,null,null,null,null,0,null,null,null,null,1,null,null,null,null,2,null,null,null,null,3]
[]
[null,"12.03.2018r."]